bitfinex/quotes_BTCUSD_20250303
["timestamp","ask_amount","ask_price","bid_price","bid_amount"]
[1741000376954,0.1053958,93003.0,93002.0,0.16752544]
[1741000379089,0.12226489,93003.0,93002.0,0.16752544]
[1741000379454,0.12786593,93003.0,93002.0,0.16752544]
[1741000381254,0.12786593,93003.0,93002.0,0.31296629]
[1741000381560,0.12226489,93003.0,93002.0,0.31296629]
[1741000385196,0.1053958,93003.0,93002.0,0.29730588]
[1741000385421,0.1053958,93003.0,93002.0,0.24862544]
[1741000385772,0.1053958,93003.0,93002.0,0.16752544]
[1741000385946,0.1109627,93003.0,93002.0,0.16752544]
[1741000386359,0.1053958,93003.0,93002.0,0.16752544]
[1741000388640,0.1053958,93003.0,93002.0,0.00623944]
[1741000389179,0.11096037,93003.0,93002.0,0.00623944]
[1741000389590,0.11096037,93003.0,93002.0,0.16752544]
[1741000389750,0.12782832,93003.0,93002.0,0.16752544]
[1741000390734,0.12782832,93003.0,93002.0,0.18206629]
[1741000390980,0.12782832,93003.0,93002.0,0.26086629]
[1741000391152,0.12226375,93003.0,93002.0,0.26086629]
[1741000391616,0.3242704,93017.0,93002.0,0.32078029]
[1741000391837,0.0001704,93017.0,93016.0,0.25632241]
[1741000392792,0.0001704,93017.0,93016.0,0.56715078]
[1741000393073,0.10749327,93049.0,93030.0,0.29265756]
[1741000393074,0.01078838,93049.0,93030.0,0.29265756]
[1741000393606,0.09670489,93054.0,93030.0,0.29265756]
[1741000393819,0.09670489,93054.0,93030.0,0.30719841]
[1741000394022,0.09670489,93054.0,93030.0,0.35619841]
[1741000394438,0.09670489,93054.0,93030.0,0.35631829]
[1741000394609,0.09670489,93054.0,93030.0,0.36331829]
[1741000394795,0.0011702,93031.0,93030.0,0.36331829]
[1741000394998,0.0011702,93031.0,93030.0,0.66331829]
[1741000395194,0.0011702,93031.0,93030.0,0.61331829]
[1741000395412,0.0011702,93031.0,93030.0,0.73815829]
[1741000396183,0.0011702,93031.0,93030.0,0.68815829]
[1741000396716,0.0011702,93031.0,93030.0,0.61331829]
[1741000397130,0.0001702,93031.0,93030.0,0.60631829]
[1741000397327,0.0001702,93031.0,93030.0,0.61331829]
[1741000398437,0.0001702,93031.0,93030.0,0.66331829]
[1741000398614,0.0001702,93031.0,93030.0,0.65631829]
[1741000399152,0.0001702,93031.0,93030.0,0.66331829]
[1741000400280,0.0001702,93031.0,93030.0,0.65631829]
[1741000400495,0.0001702,93031.0,93030.0,0.66331829]
[1741000400696,2e-07,93031.0,93030.0,0.66331829]
[1741000400899,2e-07,93031.0,93030.0,0.65631829]
[1741000401294,2e-07,93031.0,93030.0,0.66331829]
[1741000401754,2e-07,93031.0,93030.0,0.61331829]
[1741000402555,2e-07,93031.0,93030.0,0.68815829]
[1741000408030,2e-07,93031.0,93030.0,0.68115829]
[1741000408176,2e-07,93031.0,93030.0,0.68815829]
[1741000409334,2e-07,93031.0,93030.0,0.56661829]
[1741000409909,2e-07,93031.0,93030.0,0.16947744]
[1741000412409,2e-07,93031.0,93030.0,0.16981804]
[1741000413464,2e-07,93031.0,93030.0,0.16169848]
[1741000413679,2e-07,93031.0,93030.0,0.00746048]
[1741000413883,2e-07,93031.0,93030.0,0.16981804]
[1741000414420,2e-07,93031.0,93030.0,0.16281804]
[1741000414698,2e-07,93031.0,93030.0,0.16981804]
[1741000414852,2e-07,93031.0,93030.0,0.00858004]
[1741000415195,0.1612362,93031.0,93030.0,0.00858004]
[1741000415497,0.00492308,93031.0,93030.0,0.16981804]
[1741000415860,2e-07,93031.0,93030.0,0.16981804]
[1741000416518,2e-07,93031.0,93030.0,0.1858636]
[1741000416717,2e-07,93031.0,93030.0,0.2658636]
[1741000416929,2e-07,93031.0,93030.0,0.26435889]
[1741000419823,2e-07,93031.0,93030.0,0.25735889]
[1741000420340,2e-07,93031.0,93030.0,0.26435889]
[1741000421551,2e-07,93031.0,93030.0,0.31115889]
[1741000421744,2e-07,93031.0,93030.0,0.61115889]
[1741000422370,2e-07,93031.0,93030.0,0.6309468]
[1741000424769,2e-07,93031.0,93030.0,0.5841468]
[1741000426231,2e-07,93031.0,93030.0,0.56435889]
[1741000426806,2e-07,93031.0,93030.0,0.26323933]
[1741000427013,2e-07,93031.0,93030.0,0.18435889]
[1741000431804,2e-07,93031.0,93030.0,0.16981804]
[1741000433541,2e-07,93031.0,93030.0,0.16281804]
[1741000433795,2e-07,93031.0,93030.0,0.00858004]
[1741000434115,2e-07,93031.0,93030.0,0.16981804]
[1741000443050,2e-07,93031.0,93030.0,0.26095889]
[1741000444441,2e-07,93031.0,93030.0,0.16981804]
[1741000444639,2e-07,93031.0,93030.0,0.00858004]
[1741000444771,0.01686304,93031.0,93030.0,0.00858004]
[1741000445549,0.17809904,93031.0,93030.0,0.00858004]
[1741000445720,0.1612362,93031.0,93030.0,0.00858004]
[1741000445957,0.1612362,93031.0,93030.0,0.00158004]
[1741000446346,0.1612362,93031.0,93030.0,0.00858004]
[1741000448343,0.1612362,93031.0,93030.0,0.00746048]
[1741000448663,0.17810057,93031.0,93030.0,0.00746048]
[1741000448923,0.01686457,93031.0,93030.0,0.00858004]
[1741000449697,0.17810057,93031.0,93030.0,0.00858004]
[1741000452523,0.01686457,93031.0,93030.0,0.00858004]
[1741000453517,0.17810057,93031.0,93030.0,0.00858004]
[1741000453849,0.80220057,93031.0,93030.0,0.00746048]
[1741000455042,0.80220057,93031.0,93030.0,0.00046048]
[1741000455237,0.80320057,93031.0,93030.0,0.00046048]
[1741000455803,0.7853362,93031.0,93030.0,0.00046048]
[1741000456390,0.7873362,93031.0,93030.0,0.00046048]
[1741000457143,0.8696362,93031.0,93030.0,0.00046048]
[1741000460207,0.93210405,93031.0,93030.0,0.00046048]
[1741000461045,0.93010405,93031.0,93030.0,0.00046048]
[1741000461407,0.93510405,93031.0,93030.0,0.00046048]
[1741000462008,0.93010405,93031.0,93030.0,0.00046048]
[1741000462220,0.93610405,93031.0,93030.0,0.00146048]
[1741000464305,0.16129,93000.0,92999.0,0.00111956]
[1741000464700,0.161304,92992.0,92984.0,0.161317]
[1741000464882,0.215056,92999.0,92981.0,0.07610068]
[1741000465230,0.215056,92999.0,92987.0,0.00111956]
[1741000465231,0.161312,92988.0,92987.0,0.00111956]
[1741000465594,0.215076,92990.0,92989.0,0.00111956]
[1741000465796,0.215068,92994.0,92993.0,0.00111956]
[1741000466005,0.376368,92994.0,92993.0,0.00111956]
[1741000467715,0.376368,92994.0,92993.0,0.00011956]
[1741000468514,0.377368,92994.0,92993.0,0.00211956]
[1741000468720,0.39423871,92994.0,92993.0,0.00211956]
[1741000469107,0.40504742,92994.0,92993.0,0.00211956]
[1741000469562,0.40504742,92994.0,92993.0,0.002]
[1741000469999,0.3,92993.0,92984.0,0.00011956]
[1741000470162,0.161316,92985.0,92984.0,0.00011956]
[1741000470687,0.3,92984.0,92981.0,0.00052024]
[1741000470865,0.461311,92988.0,92987.0,0.0001703]
[1741000471070,0.582751,92988.0,92987.0,0.0001703]
[1741000471279,0.59962432,92988.0,92987.0,0.0001703]
[1741000473006,0.92372432,92988.0,92987.0,0.0001703]
[1741000473994,0.92372432,92988.0,92987.0,0.0011703]
[1741000474529,0.92372432,92988.0,92987.0,0.0001703]
[1741000474731,0.92572432,92988.0,92987.0,0.0001703]
[1741000475676,0.908851,92988.0,92987.0,0.0001703]
[1741000476019,0.161354,92963.0,92962.0,0.00192178]
[1741000476264,0.485454,92963.0,92962.0,0.00192178]
[1741000477284,0.486454,92963.0,92962.0,0.00792178]
[1741000477453,0.49717403,92963.0,92962.0,0.00792178]
[1741000477784,0.33582003,92963.0,92962.0,0.00804134]
[1741000477988,0.49717403,92963.0,92962.0,0.00804134]
[1741000479103,0.51404983,92963.0,92962.0,0.00804134]
[1741000479826,0.35269583,92963.0,92962.0,0.00804134]
[1741000480224,0.51404983,92963.0,92962.0,0.00804134]
[1741000480816,0.5033298,92963.0,92962.0,0.00804134]
[1741000481487,0.3419758,92963.0,92962.0,0.16939734]
[1741000482190,0.3419758,92963.0,92962.0,0.00804134]
[1741000482759,0.3419758,92963.0,92962.0,0.00821174]
[1741000483786,0.3419758,92963.0,92962.0,0.16956774]
[1741000484547,0.3251,92963.0,92962.0,0.16956774]
[1741000485177,0.3251,92963.0,92962.0,0.29426774]
[1741000485847,0.001,92963.0,92962.0,0.29426774]
[1741000486220,0.001,92963.0,92962.0,0.13291174]
[1741000486421,0.001,92963.0,92962.0,0.08771174]
[1741000486622,0.001,92963.0,92962.0,0.00821174]
[1741000488219,0.162354,92963.0,92962.0,0.00821174]
[1741000489008,0.162354,92963.0,92962.0,0.00809218]
[1741000491831,0.486454,92963.0,92962.0,0.00809218]
[1741000492692,0.3251,92963.0,92962.0,0.00821174]
[1741000494754,0.34231708,92963.0,92962.0,0.00821174]
[1741000495758,0.3254408,92963.0,92962.0,0.00821174]
[1741000496136,0.4867948,92963.0,92962.0,0.00821174]
[1741000496340,0.3254408,92963.0,92962.0,0.16956774]
[1741000497478,0.0013408,92963.0,92962.0,0.29616774]
[1741000497680,8e-07,92963.0,92962.0,0.65708409]
[1741000497821,0.3241,93005.0,92987.0,0.28803156]
[1741000498021,0.485381,93005.0,92987.0,0.28803156]
[1741000498216,0.3025,93004.0,92987.0,0.28803156]
[1741000498719,0.0025,93004.0,92987.0,0.28803156]
[1741000498924,0.0025,93004.0,92987.0,0.28703156]
[1741000499273,0.01090662,92999.0,92987.0,0.28703156]
[1741000499450,0.3025,93004.0,92987.0,0.28703156]
[1741000499663,0.3025,93004.0,92987.0,0.29103156]
[1741000500065,0.31352883,93004.0,92987.0,0.29103156]
[1741000500266,0.01727028,92988.0,92987.0,0.29103156]
[1741000500622,0.01727028,92988.0,92987.0,0.30158021]
[1741000500765,0.0025,93004.0,92993.0,0.161302]
[1741000500965,0.0025,93004.0,92993.0,0.60634792]
[1741000501220,0.0025,93004.0,92993.0,0.60484285]
[1741000501579,8e-07,92994.0,92993.0,0.65484285]
[1741000501920,0.0025,93004.0,93003.0,0.30402585]
[1741000502326,0.0025,93004.0,93003.0,0.35402585]
[1741000503439,0.0025,93004.0,93003.0,0.30402585]
[1741000503828,0.0025,93004.0,93003.0,0.241385]
[1741000504034,0.0025,93004.0,93003.0,0.0801]
[1741000504602,0.01319231,93004.0,92994.0,0.0776]
[1741000504824,0.01319231,93004.0,92987.0,0.00012006]
[1741000504825,0.161302,92994.0,92987.0,0.00012006]
[1741000505187,0.161311,92988.0,92987.0,0.00012006]
[1741000505688,0.485411,92988.0,92987.0,0.00012006]
[1741000506772,0.785411,92988.0,92987.0,0.00012006]
[1741000506928,0.3241,92988.0,92987.0,0.16143206]
[1741000507562,0.485411,92988.0,92987.0,0.00029046]
[1741000507879,0.3241,92988.0,92987.0,0.16560246]
[1741000508203,0.3241,92988.0,92987.0,0.16160246]
[1741000508496,0.485411,92988.0,92987.0,0.00629046]
[1741000509224,0.50228264,92988.0,92987.0,0.00629046]
[1741000509421,0.50228264,92988.0,92987.0,0.00029046]
[1741000510371,0.80228264,92988.0,92987.0,0.00029046]
[1741000510804,0.64097164,92988.0,92987.0,0.00029046]
[1741000511232,0.34097164,92988.0,92987.0,0.16160246]
[1741000511398,0.34097164,92988.0,92987.0,0.16360246]
[1741000511803,0.34097164,92988.0,92987.0,0.16160246]
[1741000512286,0.34097164,92988.0,92987.0,0.16260246]
[1741000512612,0.01687164,92988.0,92987.0,0.16260246]
[1741000513218,0.01687164,92988.0,92987.0,0.16160246]
[1741000514377,0.01687164,92988.0,92987.0,0.00029046]
[1741000514583,0.01687164,92988.0,92987.0,0.00529046]
[1741000514804,0.17818264,92988.0,92987.0,0.00529046]
[1741000515018,0.17818264,92988.0,92987.0,0.00029046]
[1741000515226,0.84788264,92988.0,92987.0,0.00029046]
[1741000515429,0.84788264,92988.0,92987.0,0.00529046]
[1741000515965,0.3,92985.0,92952.0,0.05708264]
[1741000516267,0.77449019,92988.0,92952.0,0.00039926]
[1741000516268,0.161371,92953.0,92952.0,0.00039926]
[1741000516818,0.161369,92955.0,92952.0,0.00039926]
[1741000517057,0.161371,92953.0,92952.0,0.00039926]
[1741000517471,0.161369,92955.0,92952.0,0.00039926]
[1741000517687,0.161371,92953.0,92952.0,0.00039926]
[1741000518658,0.162371,92953.0,92952.0,0.00639926]
[1741000519893,0.161371,92953.0,92952.0,0.00039926]
[1741000521076,0.161371,92953.0,92952.0,0.00256966]
[1741000521570,0.161371,92953.0,92952.0,0.00056966]
[1741000521571,0.485471,92953.0,92952.0,0.00056966]
[1741000521771,0.485471,92953.0,92952.0,0.0004753]
[1741000523432,0.785471,92953.0,92952.0,0.0004753]
[1741000523879,0.785471,92953.0,92952.0,0.00038124]
[1741000525191,0.787471,92953.0,92952.0,0.00038124]
[1741000527398,0.785471,92953.0,92952.0,0.00038124]
[1741000527742,0.792471,92953.0,92952.0,0.00138124]
[1741000528322,0.792471,92953.0,92952.0,0.00038124]
[1741000528661,0.785471,92953.0,92952.0,0.00038124]
[1741000528863,0.792471,92953.0,92952.0,0.00138124]
[1741000530068,0.785471,92953.0,92952.0,0.00038124]
[1741000530555,0.791471,92953.0,92952.0,0.00138124]
[1741000530880,0.90038744,92953.0,92952.0,0.00138124]
[1741000531088,0.461397,92938.0,92937.0,0.0003408]
[1741000531306,0.536197,92938.0,92937.0,0.0003408]
[1741000533211,0.541197,92938.0,92937.0,0.0003408]
[1741000533912,0.536197,92938.0,92937.0,0.0003408]
[1741000534126,0.538197,92938.0,92937.0,0.0003408]
[1741000536143,0.3,92937.0,92879.0,0.35]
[1741000536350,0.6241,92937.0,92900.0,0.0001703]
[1741000536675,0.161437,92915.0,92900.0,0.0001703]
[1741000536796,0.215244,92918.0,92900.0,0.0001703]
[1741000536994,0.215226,92926.0,92900.0,0.0001703]
[1741000536995,0.161437,92915.0,92900.0,0.0001703]
[1741000537279,0.161437,92915.0,92907.0,0.161451]
[1741000537514,0.17232487,92915.0,92904.0,0.215275]
[1741000537690,0.17232487,92915.0,92900.0,0.0001703]
[1741000537919,0.17232487,92915.0,92914.0,0.00046129]
[1741000538058,0.17332487,92915.0,92914.0,0.00046129]
[1741000538655,0.47232487,92915.0,92914.0,0.00046129]
[1741000539899,0.47232487,92915.0,92914.0,0.00246129]
[1741000540531,0.54712487,92915.0,92914.0,0.00246129]
[1741000541234,0.54712487,92915.0,92914.0,0.00046129]
[1741000541621,0.38568787,92915.0,92914.0,0.00046129]
[1741000542405,0.70978787,92915.0,92914.0,0.00046129]
[1741000543255,0.87122487,92915.0,92914.0,0.00046129]
[1741000543564,0.70978787,92915.0,92914.0,0.00046129]
[1741000545020,0.6241,92915.0,92914.0,0.00046129]
[1741000545235,0.3241,92915.0,92914.0,0.00046129]
[1741000545668,0.33506789,92915.0,92914.0,0.00046129]
[1741000547248,0.49650489,92915.0,92914.0,0.00046129]
[1741000547451,0.49650489,92915.0,92914.0,0.00246129]
[1741000549398,0.79650489,92915.0,92914.0,0.00246129]
[1741000551066,0.63506789,92915.0,92914.0,0.00246129]
[1741000553828,0.79650489,92915.0,92914.0,0.00246129]
[1741000554026,0.63506789,92915.0,92914.0,0.00246129]
[1741000555974,0.3241,92915.0,92914.0,0.16390029]
[1741000557044,0.3241,92915.0,92914.0,0.00246129]
[1741000557437,0.324441,92915.0,92914.0,0.00246129]
[1741000557843,0.324441,92915.0,92914.0,0.00046129]
[1741000559022,0.324441,92915.0,92914.0,0.00346129]
[1741000559244,0.485878,92915.0,92914.0,0.00346129]
[1741000559697,0.785878,92915.0,92914.0,0.00346129]
[1741000560848,0.89479444,92915.0,92914.0,0.00346129]
[1741000561369,0.785878,92915.0,92914.0,0.00346129]
[1741000562700,0.785878,92915.0,92914.0,0.00046129]
[1741000565851,0.629441,92915.0,92914.0,0.00046129]
[1741000566054,0.790878,92915.0,92914.0,0.00046129]
[1741000566460,0.785878,92915.0,92914.0,0.00046129]
[1741000566662,0.89479444,92915.0,92914.0,0.00046129]
[1741000566812,0.97699444,92915.0,92914.0,0.00046129]
[1741000567233,0.97199444,92915.0,92914.0,0.00046129]
[1741000567444,0.863078,92915.0,92914.0,0.00046129]
[1741000567723,0.863078,92915.0,92910.0,0.0003412]
[1741000567724,0.461444,92911.0,92910.0,0.0003412]
[1741000568004,0.461444,92911.0,92910.0,0.00046136]
[1741000569437,0.464444,92911.0,92910.0,0.00046136]
[1741000570565,0.47237245,92911.0,92910.0,0.00046136]
[1741000571970,0.79647245,92911.0,92910.0,0.00046136]
[1741000572827,0.63502845,92911.0,92910.0,0.00046136]
[1741000573008,0.33502845,92911.0,92910.0,0.00027292]
[1741000573605,0.3271,92911.0,92910.0,0.00027292]
[1741000573865,0.003,92911.0,92910.0,0.24381892]
[1741000574245,0.003,92911.0,92910.0,0.08237292]
[1741000574677,0.000341,92915.0,92914.0,0.161439]
[1741000575337,0.000341,92915.0,92913.0,0.158441]
[1741000575489,0.000341,92915.0,92914.0,0.161439]
[1741000575708,0.000341,92915.0,92910.0,0.08237292]
[1741000576225,0.000341,92915.0,92914.0,0.002]
[1741000576648,0.000341,92915.0,92910.0,0.08237292]
[1741000576874,0.000341,92915.0,92910.0,0.24381892]
[1741000577072,0.000341,92915.0,92910.0,0.08237292]
[1741000577390,0.215252,92914.0,92910.0,0.00027292]
[1741000577660,0.161444,92911.0,92910.0,0.00027292]
[1741000578141,0.461444,92911.0,92910.0,0.00027292]
[1741000578320,0.461444,92911.0,92910.0,0.00327292]
[1741000578787,0.461444,92911.0,92910.0,0.00027292]
[1741000579124,0.785544,92911.0,92910.0,0.00527292]
[1741000579330,0.860304,92911.0,92910.0,0.00527292]
[1741000580358,0.940404,92911.0,92910.0,0.00527292]
[1741000580553,0.461451,92907.0,92906.0,0.0003402]
[1741000580801,0.461451,92907.0,92906.0,0.00046043]
[1741000581786,0.3,92907.0,92906.0,0.00046043]
[1741000582004,0.37476,92907.0,92906.0,0.00046043]
[1741000582153,0.461451,92907.0,92906.0,0.00046043]
[1741000582792,0.463451,92907.0,92906.0,0.00046043]
[1741000583726,0.461451,92907.0,92906.0,0.00046043]
[1741000583933,0.94086744,92907.0,92906.0,0.00046043]
[1741000584371,0.785551,92907.0,92906.0,0.00046043]
[1741000584925,0.786551,92907.0,92906.0,0.00046043]
[1741000585941,0.785551,92907.0,92906.0,0.00046043]
[1741000586345,0.862311,92907.0,92906.0,0.00046043]
[1741000586772,0.860311,92907.0,92906.0,0.00046043]
[1741000588357,0.863311,92907.0,92906.0,0.00046043]
[1741000591418,0.6241,92907.0,92906.0,0.00046043]
[1741000591616,0.785551,92907.0,92906.0,0.00046043]
[1741000591880,0.788551,92907.0,92906.0,0.00046043]
[1741000592416,0.785551,92907.0,92906.0,0.00046043]
[1741000592708,0.786551,92907.0,92906.0,0.00046043]
[1741000595485,0.3251,92907.0,92906.0,0.24101343]
[1741000595709,0.3251,92907.0,92906.0,0.29031343]
[1741000596512,0.3241,92907.0,92906.0,0.29031343]
[1741000596853,0.09670489,92916.0,92914.0,0.161439]
[1741000597405,0.09670489,92916.0,92914.0,0.238139]
[1741000597609,0.42080489,92924.0,92914.0,0.238139]
[1741000598489,0.42080489,92924.0,92914.0,0.237139]
[1741000599280,0.42080489,92924.0,92914.0,0.239139]
[1741000601174,0.3241,92924.0,92914.0,0.239139]
[1741000601605,0.01061926,92929.0,92914.0,0.239139]
[1741000603765,0.17203226,92929.0,92914.0,0.239139]
[1741000604483,0.01061926,92929.0,92914.0,0.239139]
[1741000605400,0.3,92931.0,92914.0,0.239139]
[1741000605582,0.3241,92932.0,92914.0,0.25367985]
[1741000605880,0.3241,92944.0,92943.0,0.161389]
[1741000606088,0.3241,92952.0,92951.0,0.161375]
[1741000606635,0.0003408,92953.0,92952.0,0.161373]
[1741000607280,0.00074004,92953.0,92952.0,0.161373]
[1741000607422,0.00074004,92953.0,92945.0,0.215178]
[1741000607623,0.00074004,92953.0,92943.0,0.0786]
[1741000607842,0.161387,92944.0,92943.0,0.0786]
[1741000608035,0.161381,92948.0,92943.0,0.0786]
[1741000608298,0.16138,92949.0,92943.0,0.0786]
[1741000608457,0.16138,92948.0,92943.0,0.0786]
[1741000608653,0.161378,92950.0,92943.0,0.0786]
[1741000608858,0.215164,92952.0,92945.0,0.003]
[1741000609061,0.00074004,92953.0,92945.0,0.164384]
[1741000609280,0.00074004,92953.0,92943.0,0.0786]
[1741000609714,0.00074004,92953.0,92948.0,0.16138]
[1741000609923,0.00074004,92953.0,92943.0,0.0826]
[1741000610074,0.00074004,92953.0,92952.0,0.161373]
[1741000610275,0.00074004,92953.0,92943.0,0.0826]
[1741000610501,0.00074004,92953.0,92948.0,0.161379]
[1741000610674,0.00074004,92953.0,92943.0,0.293784]
[1741000610888,0.00074004,92953.0,92943.0,0.239989]
[1741000611107,0.00074004,92953.0,92945.0,0.161384]
[1741000611451,0.00074004,92953.0,92943.0,0.0816]
[1741000611585,0.00074004,92953.0,92949.0,0.161377]
[1741000611788,0.00074004,92953.0,92943.0,0.0816]
[1741000611997,0.00074004,92953.0,92947.0,0.161381]
[1741000612387,0.00074004,92953.0,92945.0,0.003]
[1741000612592,0.00074004,92953.0,92950.0,0.161376]
[1741000612858,0.00074004,92953.0,92952.0,0.161373]
[1741000613358,0.00074004,92953.0,92945.0,0.003]
[1741000613745,0.161384,92946.0,92945.0,0.003]
[1741000614072,0.00074004,92953.0,92943.0,0.0786]
[1741000614292,0.00074004,92953.0,92947.0,0.003]
[1741000614436,0.161376,92951.0,92947.0,0.003]
[1741000614617,0.00074004,92953.0,92943.0,0.0786]
[1741000614852,0.161379,92949.0,92943.0,0.0786]
[1741000615165,0.00074004,92953.0,92945.0,0.005]
[1741000615394,0.21590404,92953.0,92943.0,0.0786]
[1741000615525,0.00074004,92953.0,92943.0,0.0786]
[1741000615735,0.00074004,92953.0,92943.0,0.0816]
[1741000615931,0.00074004,92953.0,92952.0,0.207273]
[1741000616127,0.00074004,92953.0,92952.0,0.30331385]
[1741000616329,0.00074004,92953.0,92952.0,0.31410022]
[1741000616535,0.00074004,92953.0,92952.0,0.66410022]
[1741000616969,0.00074004,92953.0,92952.0,0.61410022]
[1741000617165,0.161305,92992.0,92984.0,0.161317]
[1741000617485,0.09670489,92997.0,92987.0,0.161312]
[1741000618049,0.09670489,92997.0,92985.0,0.0783]
[1741000618252,0.0063408,92988.0,92985.0,0.0783]
[1741000618452,0.0063408,92988.0,92984.0,0.00112023]
[1741000618676,0.161316,92985.0,92984.0,0.00012023]
[1741000619077,0.0003408,92988.0,92984.0,0.00012023]
[1741000619485,0.161316,92985.0,92984.0,0.00012023]
[1741000620615,0.161316,92985.0,92984.0,0.00412023]
[1741000623916,0.785416,92985.0,92984.0,0.00412023]
[1741000624787,0.785416,92985.0,92984.0,0.00012023]
[1741000625176,0.785416,92985.0,92984.0,0.00112023]
[1741000626209,0.785416,92985.0,92984.0,0.00012023]
[1741000627432,0.790416,92985.0,92984.0,0.00012023]
[1741000628069,0.785416,92985.0,92984.0,0.00012023]
[1741000628279,0.791416,92985.0,92984.0,0.00112023]
[1741000628932,0.791416,92985.0,92984.0,0.00012023]
[1741000628933,0.485416,92985.0,92984.0,0.00012023]
[1741000629132,0.491416,92985.0,92984.0,0.00112023]
[1741000629791,0.3301,92985.0,92984.0,0.00112023]
[1741000630378,0.3241,92985.0,92984.0,0.00012023]
[1741000630837,0.3291,92985.0,92984.0,0.16243823]
[1741000631035,0.005,92985.0,92984.0,0.16243823]
[1741000631239,0.0003408,92988.0,92984.0,0.00012023]
[1741000631416,0.0003408,92988.0,92987.0,0.161312]
[1741000633885,0.0003408,92988.0,92984.0,0.00012023]
[1741000634079,0.161316,92985.0,92984.0,0.00012023]
[1741000634287,0.461316,92985.0,92984.0,0.00012023]
[1741000635051,0.785416,92985.0,92984.0,0.00012023]
[1741000635258,0.785416,92985.0,92984.0,0.00412023]
[1741000636718,0.785416,92985.0,92984.0,0.00012023]
[1741000636876,0.79033866,92985.0,92984.0,0.00012023]
[1741000637648,0.79333866,92985.0,92984.0,0.00012023]
[1741000638083,0.79033866,92985.0,92984.0,0.00012023]
[1741000638445,0.79333866,92985.0,92984.0,0.00012023]
[1741000638844,0.86797866,92985.0,92984.0,0.00012023]
[1741000639371,0.63202266,92985.0,92984.0,0.00012023]
[1741000639589,0.79333866,92985.0,92984.0,0.00012023]
[1741000640747,0.79033866,92985.0,92984.0,0.00012023]
[1741000641055,0.79033866,92985.0,92984.0,0.00312023]
[1741000642061,0.79033866,92985.0,92984.0,0.00012023]
[1741000643665,0.79533866,92985.0,92984.0,0.00012023]
[1741000643960,0.79533866,92985.0,92984.0,2.3e-07]
[1741000644532,0.79533866,92985.0,92984.0,0.20000023]
[1741000644733,0.79533866,92985.0,92984.0,0.16762433]
[1741000644938,0.79033866,92985.0,92984.0,0.16762433]
[1741000645467,0.79533866,92985.0,92984.0,0.16762433]
[1741000645821,0.84113866,92985.0,92984.0,0.12918129]
[1741000646340,0.84113866,92985.0,92984.0,0.09680216]
[1741000646738,0.89113866,92985.0,92984.0,0.09680216]
[1741000647011,0.89113866,92985.0,92984.0,0.06442303]
[1741000647471,0.89113866,92985.0,92984.0,0.0320439]
[1741000647871,0.16137,92954.0,92953.0,0.0001704]
[1741000648086,0.16137,92954.0,92953.0,0.00029063]
[1741000648280,0.16621865,92954.0,92953.0,0.00029063]
[1741000648640,0.49031865,92954.0,92953.0,0.00029063]
[1741000650493,0.50237444,92954.0,92953.0,0.00529063]
[1741000650698,0.34100444,92954.0,92953.0,0.00529063]
[1741000651527,0.50237444,92954.0,92953.0,0.00529063]
[1741000651811,0.50137444,92954.0,92953.0,0.00029063]
[1741000652452,0.50237444,92954.0,92953.0,0.00529063]
[1741000652650,0.34100444,92954.0,92953.0,0.00529063]
[1741000653168,0.50237444,92954.0,92953.0,0.00529063]
[1741000653481,0.34100444,92954.0,92953.0,0.00529063]
[1741000654024,0.34100444,92954.0,92953.0,0.16666163]
[1741000654229,0.34100444,92954.0,92953.0,0.00529063]
[1741000655003,0.32994865,92954.0,92953.0,0.00529063]
[1741000655155,0.32994865,92954.0,92953.0,0.24166163]
[1741000655561,0.3251,92954.0,92953.0,0.24166163]
[1741000655979,0.32992121,92954.0,92953.0,0.24166163]
[1741000657881,0.32992121,92954.0,92953.0,0.08029063]
[1741000658110,0.48647,92954.0,92953.0,0.00529063]
[1741000658553,0.49129086,92954.0,92953.0,0.00529063]
[1741000660566,0.79029086,92954.0,92953.0,0.00029063]
[1741000660769,0.86493086,92954.0,92953.0,0.00029063]
[1741000661007,0.86493086,92954.0,92953.0,0.00129063]
[1741000661589,0.86493086,92954.0,92953.0,0.00029063]
[1741000663084,0.86693086,92954.0,92953.0,0.00029063]
[1741000663366,0.79229086,92954.0,92953.0,0.00029063]
[1741000663571,0.86497086,92954.0,92953.0,0.00029063]
[1741000663925,0.86697086,92954.0,92953.0,0.00029063]
[1741000665928,0.161418,92926.0,92925.0,0.05649063]
[1741000666135,0.161415,92929.0,92925.0,0.05688987]
[1741000666372,0.0047404,92926.0,92925.0,0.05688987]
[1741000666588,0.161413,92929.0,92925.0,0.05688987]
[1741000666786,0.0047404,92926.0,92925.0,0.05688987]
[1741000666995,0.215204,92935.0,92925.0,0.05688987]
[1741000667194,0.001,92926.0,92925.0,0.05988987]
[1741000667930,0.00574507,92926.0,92925.0,0.05988987]
[1741000668227,0.001,92926.0,92925.0,0.05988987]
[1741000668363,0.00474507,92926.0,92925.0,0.05688987]
[1741000668572,0.161418,92926.0,92925.0,0.05688987]
[1741000668777,0.161415,92928.0,92925.0,0.05688987]
[1741000668996,0.00474507,92926.0,92925.0,0.21830987]
[1741000669206,0.3241,92936.0,92925.0,0.05688987]
[1741000669547,0.00476369,92935.0,92925.0,0.21830887]
[1741000669666,0.215208,92933.0,92925.0,0.22130887]
[1741000669868,0.16141,92932.0,92925.0,0.22130887]
[1741000670072,0.16141,92931.0,92926.0,0.161418]
[1741000670294,0.00475438,92931.0,92926.0,0.161418]
[1741000670470,0.00475438,92931.0,92925.0,0.05688987]
[1741000670669,0.161407,92933.0,92927.0,0.161415]
[1741000670911,0.3241,92936.0,92925.0,0.05988987]
[1741000671071,0.485502,92936.0,92929.0,0.161412]
[1741000671287,0.3241,92936.0,92929.0,0.161412]
[1741000671635,0.001,92931.0,92930.0,0.161411]
[1741000672150,0.001,92931.0,92930.0,0.24511742]
[1741000672351,0.001,92931.0,92930.0,0.243611]
[1741000672734,0.3241,92936.0,92935.0,0.161403]
[1741000673827,0.07468,92965.0,92936.0,0.0771]
[1741000673828,0.3241,92961.0,92936.0,0.0771]
[1741000674028,0.161357,92962.0,92957.0,0.0771]
[1741000674300,0.3241,92962.0,92957.0,0.0771]
[1741000674517,0.3241,92962.0,92961.0,0.161357]
[1741000674719,0.3241,92962.0,92959.0,0.0483]
[1741000674853,0.485457,92962.0,92959.0,0.0483]
[1741000675074,0.3241,92962.0,92961.0,0.161357]
[1741000675952,0.3241,92962.0,92959.0,0.04835177]
[1741000676606,0.161359,92960.0,92959.0,0.04835177]
[1741000676962,0.16638967,92960.0,92959.0,5.177e-05]